bitfinex-derivatives/quotes_BTCF0:USTF0_20250930
["timestamp","ask_amount","ask_price","bid_price","bid_amount"]
[1759255080649,1.25213072,113350.0,113340.0,0.01317]
[1759255080843,3.85033072,113350.0,113340.0,0.01317]
[1759255082750,3.85029072,113350.0,113340.0,0.01317]
[1759255083057,1.25213072,113350.0,113340.0,0.01317]
[1759255083356,3.85029072,113350.0,113340.0,0.01317]
[1759255083658,3.86279072,113350.0,113340.0,0.02223305]
[1759255083955,3.86279072,113350.0,113340.0,0.01317]
[1759255084357,1.26463072,113350.0,113340.0,0.01317]
[1759255084657,3.86279072,113350.0,113340.0,0.01317]
[1759255084957,1.26463072,113350.0,113340.0,0.01317]
[1759255085145,3.86279072,113350.0,113340.0,0.01317]
[1759255085661,0.0882057,113340.0,113330.0,0.07641575]
[1759255085845,1.28395212,113340.0,113330.0,0.01317]
[1759255086251,3.88211212,113340.0,113330.0,0.01317]
[1759255086459,1.28395212,113340.0,113330.0,0.01317]
[1759255086656,3.88207212,113340.0,113330.0,0.01317]
[1759255087453,1.28395212,113340.0,113330.0,0.01317]
[1759255087854,3.88211212,113340.0,113330.0,0.02198662]
[1759255088859,1.28395212,113340.0,113330.0,0.01317]
[1759255089060,3.88211212,113340.0,113330.0,0.01317]
[1759255089451,1.28395212,113340.0,113330.0,0.07641575]
[1759255089859,3.88207212,113340.0,113330.0,0.07641575]
[1759255090059,1.28395212,113340.0,113330.0,0.07641575]
[1759255090260,3.88207212,113340.0,113330.0,0.07641575]
[1759255090555,3.88211212,113340.0,113330.0,0.01317]
[1759255091363,3.88211212,113340.0,113330.0,0.03469]
[1759255091663,3.88211212,113340.0,113330.0,0.01317]
[1759255092956,1.28395212,113340.0,113330.0,0.01317]
[1759255093167,3.88211212,113340.0,113330.0,0.1229036]
[1759255093555,1.28395212,113340.0,113330.0,0.1229036]
[1759255093856,3.88211212,113340.0,113330.0,0.01317]
[1759255094458,1.28395212,113340.0,113330.0,0.01317]
[1759255094662,3.88211212,113340.0,113330.0,0.01317]
[1759255095066,1.28395212,113340.0,113330.0,0.01317]
[1759255095262,3.88211212,113340.0,113330.0,0.1013837]
[1759255096160,3.88211212,113340.0,113330.0,0.01317]
[1759255097267,3.88215212,113340.0,113330.0,0.01317]
[1759255098268,0.0882187,113330.0,113320.0,0.07662575]
[1759255098565,0.86649191,113330.0,113320.0,0.07662575]
[1759255098768,0.86649191,113330.0,113320.0,0.01338]
[1759255099268,0.88710999,113330.0,113320.0,0.01338]
[1759255099765,0.88710999,113330.0,113320.0,0.07662575]
[1759255100061,0.0882264,113320.0,113310.0,0.07613886]
[1759255100267,1.67493961,113320.0,113310.0,0.07613886]
[1759255100568,0.86649961,113320.0,113310.0,0.18702306]
[1759255100768,3.46465961,113320.0,113310.0,0.18702306]
[1759255101967,0.86649961,113320.0,113310.0,0.18702306]
[1759255102168,3.46469961,113320.0,113310.0,0.18702306]
[1759255103170,3.46469961,113320.0,113310.0,0.195703]
[1759255104473,0.86649961,113320.0,113310.0,0.195703]
[1759255104674,3.46469961,113320.0,113310.0,0.195703]
[1759255106775,3.46469961,113320.0,113310.0,0.18702306]
[1759255107276,3.46469961,113320.0,113310.0,0.16437306]
[1759255107464,3.46469961,113320.0,113310.0,0.07613886]
[1759255107664,3.46469961,113320.0,113310.0,0.01289311]
[1759255107665,3.88217282,113320.0,113310.0,0.01289311]
[1759255107877,4.28217282,113320.0,113310.0,7.311e-05]
[1759255108077,4.28221282,113320.0,113310.0,7.311e-05]
[1759255108463,1.68397282,113320.0,113310.0,7.311e-05]
[1759255108876,4.28221282,113320.0,113310.0,7.311e-05]
[1759255109177,4.28225282,113320.0,113310.0,7.311e-05]
[1759255109374,1.68397282,113320.0,113310.0,7.311e-05]
[1759255109676,4.28225282,113320.0,113310.0,7.311e-05]
[1759255110878,1.68397282,113320.0,113310.0,7.311e-05]
[1759255111079,4.28229282,113320.0,113310.0,7.311e-05]
[1759255111380,4.29107102,113320.0,113310.0,7.311e-05]
[1759255112066,1.69275102,113320.0,113310.0,7.311e-05]
[1759255112378,4.29111102,113320.0,113310.0,7.311e-05]
[1759255112576,1.69275102,113320.0,113310.0,7.311e-05]
[1759255112879,4.29107102,113320.0,113310.0,7.311e-05]
[1759255113379,1.69275102,113320.0,113310.0,7.311e-05]
[1759255113567,4.29107102,113320.0,113310.0,7.311e-05]
[1759255114678,4.29107102,113320.0,113310.0,0.01275311]
[1759255115371,4.29107102,113320.0,113310.0,7.311e-05]
[1759255119582,3.89107102,113320.0,113310.0,7.311e-05]
[1759255119983,1.29275102,113320.0,113310.0,7.311e-05]
[1759255120184,1.28397282,113320.0,113310.0,7.311e-05]
[1759255120484,3.88233282,113320.0,113310.0,7.311e-05]
[1759255120887,3.88237282,113320.0,113310.0,7.311e-05]
[1759255122379,1.28397282,113320.0,113310.0,0.03540311]
[1759255122575,3.88237282,113320.0,113310.0,0.03540311]
[1759255122780,3.88237282,113320.0,113310.0,0.01275311]
[1759255126093,3.88237282,113320.0,113310.0,7.311e-05]
[1759255126692,1.28397282,113320.0,113310.0,7.311e-05]
[1759255126886,3.88233282,113320.0,113310.0,7.311e-05]
[1759255127793,1.28397282,113320.0,113310.0,7.311e-05]
[1759255127985,3.88233282,113320.0,113310.0,7.311e-05]
[1759255128692,0.86649961,113320.0,113310.0,0.12336761]
[1759255128892,3.46481961,113320.0,113310.0,0.12336761]
[1759255129091,3.46521961,113320.0,113310.0,0.12336761]
[1759255129492,3.46521961,113320.0,113310.0,0.52336761]
[1759255129686,0.86689961,113320.0,113310.0,0.52336761]
[1759255129887,2.1514,113320.0,113310.0,0.52336761]
[1759255130094,2.151,113320.0,113310.0,0.58661336]
[1759255130298,2.95952,113320.0,113310.0,0.58661336]
[1759255130993,3.37699321,113320.0,113310.0,0.58661336]
[1759255132484,3.46522041,113320.0,113310.0,0.58661376]
[1759255133792,0.86690041,113320.0,113310.0,0.58661376]
[1759255133991,1.67494041,113320.0,113310.0,0.58661376]
[1759255136897,1.58671321,113320.0,113310.0,0.58661376]
[1759255137494,1.67493951,113320.0,113310.0,0.58661376]
[1759255137894,1.67485951,113320.0,113310.0,0.58661296]
[1759255138203,1.67485951,113320.0,113310.0,0.52336721]
[1759255138699,0.86689951,113320.0,113310.0,0.52336721]
[1759255138900,1.67485951,113320.0,113310.0,0.52336721]
[1759255139399,1.67485951,113320.0,113310.0,0.58661296]
[1759255139701,1.67485951,113320.0,113310.0,0.12336721]
[1759255139901,3.46489951,113320.0,113310.0,0.03513311]
[1759255140197,3.90271288,113320.0,113310.0,0.06331886]
[1759255140499,4.30271288,113320.0,113310.0,7.311e-05]
[1759255142301,4.72131709,113320.0,113310.0,7.311e-05]
[1759255142695,0.088243,113300.0,113290.0,0.18569655]
[1759255142995,2.45346342,113300.0,113290.0,0.18569655]
[1759255143303,2.45346342,113300.0,113290.0,0.18609655]
[1759255143604,2.45353653,113300.0,113290.0,0.18609655]
[1759255143905,4.22926897,113300.0,113290.0,0.18609655]
[1759255144906,4.22926897,113300.0,113290.0,0.07632575]
[1759255145901,4.22926897,113300.0,113290.0,0.09784575]
[1759255146204,4.22938897,113300.0,113290.0,0.09784575]
[1759255148201,1.63126897,113300.0,113290.0,0.18609695]
[1759255148401,4.22942897,113300.0,113290.0,0.18609695]
[1759255151412,4.22942897,113300.0,113290.0,0.09784575]
[1759255152511,4.22942897,113300.0,113290.0,0.11547145]
[1759255152907,4.22942897,113300.0,113290.0,0.09784575]
[1759255153220,5.06756818,113300.0,113290.0,0.0004]
[1759255153408,2.46940818,113300.0,113290.0,0.0004]
[1759255153609,2.46940818,113300.0,113290.0,0.01354]
[1759255153810,2.46940818,113300.0,113290.0,0.01394]
[1759255154006,5.06764818,113300.0,113290.0,0.01394]
[1759255154204,5.33324818,113300.0,113290.0,0.01394]
[1759255155105,2.7438018,113300.0,113290.0,0.01394]
[1759255155407,4.91543797,113300.0,113290.0,0.01394]
[1759255155615,2.31715797,113300.0,113290.0,0.01394]
[1759255155809,2.31715797,113300.0,113290.0,0.1237109]
[1759255156106,4.51583797,113300.0,113290.0,0.1237109]
[1759255156311,4.51583797,113300.0,113290.0,0.03546]
[1759255157615,4.51587797,113300.0,113290.0,0.1237104]
[1759255158313,4.51587797,113300.0,113290.0,0.03546]
[1759255160114,1.91755797,113300.0,113290.0,0.03546]
[1759255160315,4.51587797,113300.0,113290.0,0.03546]
[1759255161013,4.51587797,113300.0,113290.0,0.01394]
[1759255161213,4.51587797,113300.0,113290.0,0.03629]
[1759255162918,4.51587797,113300.0,113290.0,0.1245411]
[1759255163314,4.51587797,113300.0,113290.0,0.03629]
[1759255163615,4.51587797,113300.0,113290.0,0.01394]
[1759255164013,4.51587797,113300.0,113290.0,0.01354]
[1759255164514,4.51587797,113300.0,113290.0,0.01394]
[1759255165504,0.088251,113290.0,113280.0,0.17322479]
[1759255165715,1.28475142,113290.0,113280.0,0.17402479]
[1759255166215,1.28475142,113290.0,113280.0,0.17362479]
[1759255166412,1.28475142,113290.0,113280.0,0.19597479]
[1759255168316,1.28475142,113290.0,113280.0,0.17362479]
[1759255170019,1.28475142,113290.0,113280.0,0.08537289]
[1759255170715,1.28475142,113290.0,113280.0,0.07632575]
[1759255170915,1.29725142,113290.0,113280.0,0.07632575]
[1759255171115,1.29725142,113290.0,113280.0,0.07592575]
[1759255171313,1.29725142,113290.0,113280.0,0.18693495]
[1759255171619,3.89557142,113290.0,113280.0,0.18693495]
[1759255172422,3.89557142,113290.0,113280.0,0.09867575]
[1759255172620,3.89557142,113290.0,113280.0,0.07632575]
[1759255173222,3.88122255,113290.0,113280.0,0.01308]
[1759255173524,1.28290255,113290.0,113280.0,0.01308]
[1759255173725,3.88118255,113290.0,113280.0,0.07643012]
[1759255174922,1.28290255,113290.0,113280.0,0.07643012]
[1759255175130,3.88118255,113290.0,113280.0,0.09878012]
[1759255175931,3.88118255,113290.0,113280.0,0.04811542]
[1759255176223,3.88118255,113290.0,113280.0,0.06192542]
[1759255176428,1.28290255,113290.0,113280.0,0.15018402]
[1759255176617,3.88118255,113290.0,113280.0,0.15018402]
[1759255177225,3.88118255,113290.0,113280.0,0.06192542]
[1759255178026,3.88118255,113290.0,113280.0,0.15018472]
[1759255178230,3.88114255,113290.0,113280.0,0.15018472]
[1759255178529,3.46329234,113290.0,113280.0,0.15018472]
[1759255178918,0.86505234,113290.0,113280.0,0.15018472]
[1759255179118,3.46329234,113290.0,113280.0,0.15018472]
[1759255179623,0.86505234,113290.0,113280.0,0.15018472]
[1759255179926,3.47764121,113290.0,113280.0,0.15018472]
[1759255180128,0.87940121,113290.0,113280.0,0.15018472]
[1759255180328,3.47804121,113290.0,113280.0,0.15018472]
[1759255180521,0.3737,113290.0,113280.0,0.15018472]
[1759255180727,0.79155021,113290.0,113280.0,0.15018472]
[1759255180921,1.59931021,113290.0,113280.0,0.15018472]
[1759255181722,1.68756171,113290.0,113280.0,0.15018472]
[1759255181918,0.79155021,113290.0,113280.0,0.15018472]
[1759255182118,3.38935021,113290.0,113280.0,0.96803493]
[1759255182527,3.38935021,113290.0,113280.0,0.55018472]
[1759255182727,0.78095468,113290.0,113280.0,0.60348695]
[1759255182928,1.58871468,113290.0,113280.0,1.02133716]
[1759255183327,1.57436703,113290.0,113280.0,1.02133716]
[1759255184632,1.66261873,113290.0,113280.0,0.60348695]
[1759255185634,1.57436703,113290.0,113280.0,0.60348695]
[1759255190532,1.66261873,113290.0,113280.0,0.60348695]
[1759255191925,1.66261873,113290.0,113280.0,0.5244193]
[1759255192732,1.57436703,113290.0,113280.0,0.5244193]
[1759255195233,0.76660703,113290.0,113280.0,0.5244193]
[1759255195437,1.57420703,113290.0,113280.0,0.5244193]
[1759255196030,1.57416703,113290.0,113280.0,0.5244193]
[1759255196426,0.76660703,113290.0,113280.0,0.5244193]
[1759255196633,0.75225932,113290.0,113280.0,0.60348695]
[1759255196832,1.55981932,113290.0,113280.0,0.60348695]
[1759255198535,0.75225932,113290.0,113280.0,0.60348695]
[1759255198736,1.55981932,113290.0,113280.0,0.60348695]
[1759255199936,1.54918415,113290.0,113280.0,1.02133716]
[1759255200134,0.74166415,113290.0,113280.0,1.02133716]
[1759255200435,0.74166415,113290.0,113280.0,0.60348695]
[1759255200636,0.0129,113290.0,113280.0,1.43918737]
[1759255200831,0.0129,113290.0,113280.0,1.79998737]
[1759255201038,0.0125,113290.0,113280.0,1.80011881]
[1759255201338,0.82038,113290.0,113280.0,1.80011881]
[1759255201838,0.0129,113290.0,113280.0,1.80011881]
[1759255202037,0.0125,113290.0,113280.0,1.80011881]
[1759255202237,0.0125,113290.0,113280.0,1.72039176]
[1759255202238,0.0004001,113290.0,113280.0,1.72039176]
[1759255202437,0.0008,113310.0,113280.0,1.72039176]
[1759255202438,0.0008,113310.0,113300.0,0.035]
[1759255202640,0.467,113310.0,113300.0,0.6041407]
[1759255202842,0.4674,113310.0,113300.0,0.6041407]
[1759255203137,0.80744,113310.0,113300.0,0.94083033]
[1759255203341,0.80784,113310.0,113300.0,1.01992272]
[1759255204139,0.80784,113310.0,113300.0,0.67354547]
[1759255204539,1.58622623,113310.0,113300.0,0.60233649]
[1759255206442,1.67446343,113310.0,113300.0,0.60233649]
[1759255206635,2.09204966,113310.0,113300.0,0.18127649]
[1759255206838,2.07770425,113310.0,113300.0,0.07718726]
[1759255207138,0.0882449,113300.0,113290.0,0.07720108]
[1759255207340,0.86663113,113300.0,113290.0,0.15151388]
[1759255207541,0.86663113,113300.0,113290.0,0.06326108]
[1759255207742,0.86663113,113300.0,113290.0,0.06366108]
[1759255208141,0.86663113,113300.0,113290.0,0.15191338]
[1759255208439,0.86663113,113300.0,113290.0,0.06366108]
[1759255209033,0.86663113,113300.0,113290.0,0.15191388]
[1759255209237,3.46419113,113300.0,113290.0,0.18691388]
[1759255210543,3.46419113,113300.0,113290.0,0.07760108]
[1759255210931,3.46419113,113300.0,113290.0,0.16585418]
[1759255211542,3.46419113,113300.0,113290.0,0.1025931]
[1759255211742,3.46419113,113300.0,113290.0,0.16585418]
[1759255212334,3.46419113,113300.0,113290.0,0.07760108]
[1759255212535,0.0882526,113290.0,113280.0,0.15616347]
[1759255212741,1.28422506,113290.0,113280.0,0.07707108]
[1759255212941,0.86663883,113290.0,113280.0,0.07707108]
[1759255213141,3.46419883,113290.0,113280.0,0.07707108]
[1759255213344,0.4490526,113290.0,113280.0,0.07747108]
[1759255213650,3.46419883,113290.0,113280.0,0.07747108]
[1759255213947,0.86663883,113290.0,113280.0,0.07747108]
[1759255214141,3.46419883,113290.0,113280.0,0.07747108]
[1759255214345,3.46419883,113290.0,113280.0,0.01421]
[1759255214646,3.46419883,113290.0,113280.0,0.0004]
[1759255215044,0.86663883,113290.0,113280.0,0.0004]
[1759255215246,3.46423883,113290.0,113280.0,0.0004]
[1759255215646,4.28182506,113290.0,113280.0,0.0004]
[1759255215834,1.68422506,113290.0,113280.0,0.0004]
[1759255216038,0.0882606,113280.0,113270.0,0.19502403]
[1759255216243,0.86664683,113280.0,113270.0,0.19502403]
[1759255216847,0.85229705,113280.0,113270.0,0.19502403]
[1759255217050,3.44993705,113280.0,113270.0,0.19502403]
[1759255217343,3.44993705,113280.0,113270.0,0.18612428]
[1759255217543,3.86752328,113280.0,113270.0,0.07680108]
[1759255217843,0.0882691,113270.0,113260.0,0.1257326]
[1759255218039,1.67393533,113270.0,113260.0,0.09995045]
[1759255218343,1.67393533,113270.0,113260.0,0.03666]
[1759255218548,1.67393533,113270.0,113260.0,0.03706]
[1759255218949,3.46433533,113270.0,113260.0,0.1253369]
[1759255220148,3.46437533,113270.0,113260.0,0.1253369]
[1759255221244,3.46437533,113270.0,113260.0,0.13436959]
[1759255221550,0.86665533,113270.0,113260.0,0.19766004]
[1759255221748,3.46441533,113270.0,113260.0,0.19766004]
[1759255222652,0.86665533,113270.0,113260.0,0.19766004]
[1759255222848,3.46445533,113270.0,113260.0,0.19766004]
[1759255223247,3.46445533,113270.0,113260.0,0.07763045]
[1759255223555,0.0882755,113260.0,113250.0,0.1022226]
[1759255223848,0.86666173,113260.0,113250.0,0.01474]
[1759255224049,0.86666173,113260.0,113250.0,0.01394]
[1759255224349,0.88681321,113260.0,113250.0,0.01434]
[1759255224652,3.48465321,113260.0,113250.0,0.1022227]
[1759255224851,3.48465321,113260.0,113250.0,0.1253427]
[1759255225549,0.88681321,113260.0,113250.0,0.1253427]
[1759255225752,3.48469321,113260.0,113250.0,0.1253427]
[1759255226948,3.48469321,113260.0,113250.0,0.03706]
[1759255227451,0.88681321,113260.0,113250.0,0.1253422]
[1759255227649,3.48477321,113260.0,113250.0,0.1253422]
[1759255228150,3.55407268,113260.0,113250.0,0.1253422]
[1759255228551,3.55407268,113260.0,113250.0,0.03706]
[1759255229550,3.55407268,113260.0,113250.0,0.1253441]
[1759255229850,3.55415268,113260.0,113250.0,0.1253441]
[1759255230250,0.95611268,113260.0,113250.0,0.1253441]
[1759255230550,3.55415268,113260.0,113250.0,0.1253441]
[1759255230852,3.56291631,113260.0,113250.0,0.1253441]
[1759255231052,0.96483631,113260.0,113250.0,0.1253441]
[1759255231347,3.56291631,113260.0,113250.0,0.125344]
[1759255231747,3.55419268,113260.0,113250.0,0.125344]
[1759255232460,3.55419268,113260.0,113250.0,0.01434]
[1759255232747,3.97177891,113260.0,113250.0,0.0004]
[1759255233155,0.088284,113250.0,113240.0,0.12505777]
[1759255233348,1.28425646,113250.0,113240.0,0.12585777]
[1759255235151,1.28425646,113250.0,113240.0,0.00090607]
[1759255235549,1.28425646,113250.0,113240.0,0.00010607]
[1759255235762,1.68425646,113250.0,113240.0,0.00050607]
[1759255236348,4.28253646,113250.0,113240.0,0.00050607]
[1759255238253,1.68425646,113250.0,113240.0,0.00050607]
[1759255238456,4.28257646,113250.0,113240.0,0.00050607]
[1759255238656,4.28257646,113250.0,113240.0,0.00010607]
[1759255238858,4.28261646,113250.0,113240.0,0.00050607]
[1759255239456,1.28425646,113250.0,113240.0,0.00050607]
[1759255239657,3.88261646,113250.0,113240.0,0.00050607]
[1759255240458,3.90439811,113250.0,113240.0,0.00050607]
[1759255240648,1.30599811,113250.0,113240.0,0.00050607]
[1759255240849,3.90439811,113250.0,113240.0,0.00050607]
[1759255241858,3.88265646,113250.0,113240.0,0.00050607]
[1759255242057,3.88273646,113250.0,113240.0,0.00050607]
[1759255243053,1.28425646,113250.0,113240.0,0.00050607]
[1759255243260,3.88277646,113250.0,113240.0,0.00050607]
[1759255246058,3.88281646,113250.0,113240.0,0.01414607]
[1759255246463,3.88281646,113250.0,113240.0,0.00050607]
[1759255247061,3.047644,113250.0,113240.0,0.52540807]
[1759255247260,3.46523023,113250.0,113240.0,0.52540807]
[1759255247464,3.46527023,113250.0,113240.0,0.52540807]
[1759255248261,0.77838623,113250.0,113240.0,0.52540807]
[1759255248457,3.46527063,113250.0,113240.0,0.52540807]
[1759255248966,3.46527063,113250.0,113240.0,0.52540827]
[1759255249758,3.88285686,113250.0,113240.0,0.52540827]
[1759255252356,3.88285686,113250.0,113240.0,0.43711607]
[1759255252662,3.88285686,113250.0,113240.0,0.01399607]
[1759255252861,3.88285686,113250.0,113240.0,0.01439607]
[1759255253163,3.88285686,113250.0,113240.0,0.03645607]
[1759255253360,3.88285686,113250.0,113240.0,0.12474817]
[1759255253555,1.28425686,113250.0,113240.0,0.12474817]
[1759255253761,3.88285686,113250.0,113240.0,0.12474817]
[1759255254068,1.28425686,113250.0,113240.0,0.12474817]
[1759255254371,3.88285686,113250.0,113240.0,0.12474817]
[1759255254571,1.28425686,113250.0,113240.0,0.12474817]
[1759255254763,3.88285686,113250.0,113240.0,0.12474817]
[1759255255869,1.28425686,113250.0,113240.0,0.12474817]
[1759255256057,3.88285686,113250.0,113240.0,0.12474817]
[1759255256260,3.46527063,113250.0,113240.0,0.12474817]
[1759255256555,3.88285686,113250.0,113240.0,0.12474817]
[1759255259868,1.28425686,113250.0,113240.0,0.12474817]
[1759255260171,3.88285686,113250.0,113240.0,0.12474817]
[1759255260365,3.88285686,113250.0,113240.0,0.01439607]
[1759255261566,3.88285686,113250.0,113240.0,0.12474837]
[1759255262370,3.88285686,113250.0,113240.0,0.01439607]
[1759255264074,3.88285686,113250.0,113240.0,0.12474837]
[1759255264271,1.27120605,113250.0,113240.0,0.12474837]
[1759255264474,3.86976605,113250.0,113240.0,0.12474837]
[1759255264774,3.86976605,113250.0,113240.0,0.03645607]
[1759255264969,3.86976605,113250.0,113240.0,0.01439607]
[1759255265174,0.12487623,113240.0,113230.0,0.18808455]
[1759255265476,1.32215231,113240.0,113230.0,0.1247941]
[1759255266275,1.32223088,113240.0,113230.0,0.1247941]
[1759255268074,3.92079088,113240.0,113230.0,0.1247941]
[1759255270170,1.32223088,113240.0,113230.0,0.1247941]
[1759255270364,3.92079088,113240.0,113230.0,0.20388649]
[1759255271078,3.83249858,113240.0,113230.0,0.20388649]
[1759255271279,3.92079108,113240.0,113230.0,0.20388649]
[1759255274379,3.90643665,113240.0,113230.0,0.20388649]
[1759255275684,0.47140057,113240.0,113230.0,0.20388649]
[1759255275879,3.89579644,113240.0,113230.0,0.20388649]
[1759255276379,3.89579644,113240.0,113230.0,0.01444]
[1759255276380,4.31403448,113240.0,113230.0,0.01444]
[1759255276579,3.89579644,113240.0,113230.0,0.0882998]
[1759255276782,3.89579644,113240.0,113230.0,0.16815749]
[1759255277082,3.89579644,113240.0,113230.0,0.16775749]
[1759255277271,4.31403448,113240.0,113230.0,0.0886998]
[1759255277477,3.89579644,113240.0,113230.0,0.15225681]
[1759255278384,3.89579644,113240.0,113230.0,0.16563681]
[1759255278880,3.89579644,113240.0,113230.0,0.18675681]
[1759255279076,3.89583644,113240.0,113230.0,0.18675681]
[1759255280285,1.29727644,113240.0,113230.0,0.18675681]
[1759255280689,3.89583644,113240.0,113230.0,0.18675681]
[1759255280880,1.29727644,113240.0,113230.0,0.18675681]
[1759255281080,3.89583644,113240.0,113230.0,0.18675681]
[1759255281586,1.29727644,113240.0,113230.0,0.18675681]
[1759255281886,3.89583644,113240.0,113230.0,0.18675681]
[1759255282679,2.16378786,113240.0,113230.0,0.62089553]
[1759255282973,0.7907459,113240.0,113230.0,0.94143784]
[1759255283183,1.5980659,113240.0,113230.0,0.94143784]
[1759255284780,0.37250786,113240.0,113230.0,0.94143784]
[1759255284989,2.81891744,113250.0,113240.0,0.1227922]
[1759255285288,1.83495744,113250.0,113240.0,0.62048793]
[1759255285787,1.02763744,113250.0,113240.0,0.20224989]
[1759255285988,1.83495744,113250.0,113240.0,0.20224989]
[1759255286181,1.83495744,113250.0,113240.0,0.62048793]
[1759255288691,1.49163804,113250.0,113240.0,0.62048793]
[1759255288892,0.77903804,113260.0,113240.0,1.02048793]
[1759255289076,0.36128,113260.0,113250.0,0.54102254]
[1759255289386,1.57619959,113260.0,113250.0,0.62048023]
[1759255290487,1.57619959,113260.0,113250.0,0.20224219]
[1759255290988,1.57619959,113260.0,113250.0,0.62048023]
[1759255293991,1.15796155,113260.0,113250.0,0.62048023]
[1759255294192,1.79196,113270.0,113260.0,0.1227772]
[1759255294387,2.5992,113270.0,113260.0,0.62047293]
[1759255294588,2.59832,113270.0,113260.0,1.43871097]
[1759255294789,2.5992,113270.0,113260.0,0.60223489]
[1759255294992,2.58485014,113270.0,113260.0,1.02047293]
[1759255295290,2.58437014,113270.0,113260.0,1.02047293]
[1759255295991,2.58485014,113270.0,113260.0,0.60223489]
[1759255296190,2.58485014,113270.0,113260.0,1.02047293]
[1759255296590,3.00308818,113270.0,113260.0,0.60223489]
[1759255296796,3.36388818,113270.0,113260.0,1.02047293]
[1759255297896,3.36388818,113270.0,113260.0,0.60223489]
[1759255299303,3.35329134,113270.0,113260.0,0.60223489]
[1759255299494,3.35329134,113270.0,113260.0,0.20223489]
[1759255300596,2.9350533,113270.0,113260.0,0.20223489]
[1759255300800,3.35329134,113270.0,113260.0,0.20223489]
[1759255301304,2.9350533,113270.0,113260.0,0.20223489]
[1759255301486,3.0233234,113270.0,113260.0,0.1227772]
[1759255301692,3.44156144,113270.0,113260.0,0.1016572]
[1759255301887,3.44156144,113270.0,113260.0,0.16488652]
[1759255302093,3.44156144,113270.0,113260.0,0.18640652]
[1759255303993,3.0233234,113270.0,113260.0,0.18640652]
[1759255304206,3.44156144,113270.0,113260.0,0.18640652]
[1759255306405,0.41911804,113270.0,113260.0,0.60464456]
[1759255306697,0.77903804,113280.0,113260.0,1.4228826]
[1759255306903,0.0004,113270.0,113260.0,0.60464456]
[1759255307098,0.80976,113270.0,113260.0,0.60464456]
[1759255307297,0.81016,113270.0,113260.0,0.60464456]
[1759255307497,0.79581055,113270.0,113260.0,0.1231772]
[1759255307896,0.79581055,113270.0,113260.0,0.95965328]
[1759255308098,0.79581055,113270.0,113260.0,1.03911097]
[1759255308601,0.81008,113270.0,113260.0,1.03911097]
[1759255309402,0.79948347,113270.0,113260.0,1.03911097]
[1759255309804,1.21820151,113270.0,113260.0,0.62087293]
[1759255310002,0.79996347,113270.0,113260.0,0.62087293]
[1759255311509,0.79996347,113270.0,113260.0,1.03911097]
[1759255311806,0.79996347,113270.0,113260.0,1.02290226]
[1759255312008,1.21820151,113270.0,113260.0,0.60466422]
[1759255313109,0.00048,113270.0,113260.0,1.02290226]
[1759255313305,0.80952,113270.0,113260.0,1.02290226]
[1759255313906,0.00048,113270.0,113260.0,1.02290226]
[1759255314110,0.80892,113270.0,113260.0,1.02290226]
[1759255314310,0.86857934,113280.0,113270.0,0.1232591]
[1759255314608,1.67745934,113280.0,113270.0,0.54149714]
[1759255315008,0.86857934,113280.0,113270.0,0.54149714]
[1759255315206,0.3616,113280.0,113270.0,0.60474612]
[1759255315508,1.2592614,113280.0,113270.0,0.60474612]
[1759255315709,1.2584614,113280.0,113270.0,0.60474612]
[1759255315904,1.67709944,113280.0,113270.0,0.60474612]
[1759255316111,1.67709944,113280.0,113270.0,0.61363579]
[1759255317810,1.67709944,113280.0,113270.0,0.19539775]
[1759255318213,1.67709944,113280.0,113270.0,0.61363579]
[1759255319312,1.67709944,113280.0,113270.0,0.19539775]
[1759255319313,2.09533748,113280.0,113270.0,0.19539775]
[1759255319611,2.49533748,113280.0,113270.0,0.19539755]
[1759255319803,2.49533748,113280.0,113270.0,0.19579755]
[1759255320003,2.49533748,113280.0,113270.0,0.19539755]
[1759255320204,2.49533748,113280.0,113270.0,0.10712865]
[1759255320510,2.48098738,113280.0,113270.0,0.07213865]
[1759255320704,2.48098738,113280.0,113270.0,0.00928967]
[1759255320910,2.48098738,113280.0,113270.0,0.00888967]
[1759255321210,2.48098738,113280.0,113270.0,0.06364898]
[1759255321405,2.48098738,113280.0,113270.0,0.07656898]
[1759255322512,2.48098738,113280.0,113270.0,0.08552855]
[1759255322713,2.48098738,113280.0,113270.0,0.07656898]
[1759255323509,1.67206738,113280.0,113270.0,0.18690748]
[1759255323716,4.27198738,113280.0,113270.0,0.18690748]
[1759255323910,3.0353113,113280.0,113270.0,0.60514552]
[1759255324214,1.23407405,113280.0,113270.0,0.62135423]
[1759255324412,1.23447405,113280.0,113270.0,0.62135423]
[1759255324716,1.23411405,113280.0,113270.0,0.62135423]
[1759255324916,0.33673315,113280.0,113270.0,0.62135423]
[1759255325104,1.14617315,113280.0,113270.0,0.62135423]
[1759255326312,1.14605315,113280.0,113270.0,0.62096294]
[1759255326512,1.14565315,113280.0,113270.0,0.62096294]
[1759255326713,1.14605315,113280.0,113270.0,0.62096294]
[1759255327111,1.14605315,113280.0,113270.0,0.62988799]
[1759255328618,1.23431405,113280.0,113270.0,0.62988799]
[1759255328815,1.6521608,113280.0,113270.0,0.21204124]
[1759255329406,1.23431405,113280.0,113270.0,0.21204124]
[1759255329606,1.6521608,113280.0,113270.0,0.21204124]
[1759255330519,1.63781149,113280.0,113270.0,0.21204124]
[1759255332109,2.45565824,113280.0,113270.0,0.08878274]
[1759255332313,2.45565824,113280.0,113270.0,0.06388941]
[1759255332515,2.45565824,113280.0,113270.0,0.06348941]
[1759255332820,2.45565824,113280.0,113270.0,0.06388941]
[1759255335715,2.45565824,113280.0,113260.0,0.06348941]
[1759255335915,2.03781149,113280.0,113270.0,0.0004]
[1759255336117,2.39861149,113280.0,113270.0,0.0004]
[1759255336318,1.99861149,113280.0,113270.0,0.0004]
[1759255337222,2.41645824,113280.0,113270.0,0.0004]
[1759255337730,1.60713824,113280.0,113270.0,0.0004]
[1759255337917,3.37116474,113280.0,113270.0,0.01414]
[1759255338116,1.18929149,113280.0,113270.0,0.03623]
[1759255338427,3.78921149,113280.0,113270.0,0.03623]
[1759255338726,1.18929149,113280.0,113270.0,0.1244981]
[1759255338917,3.78917149,113280.0,113270.0,0.1244981]
[1759255339117,3.78877149,113280.0,113270.0,0.18798751]
[1759255339326,1.18929149,113280.0,113270.0,0.18798751]
[1759255339730,0.77144474,113280.0,113270.0,0.18798751]
[1759255339918,1.58052354,113280.0,113270.0,0.18798751]
[1759255340120,1.58012354,113280.0,113270.0,0.54234485]
[1759255340320,1.99837029,113280.0,113270.0,0.1244974]
[1759255341327,1.99837029,113280.0,113270.0,0.18796622]
[1759255341826,1.99821029,113280.0,113270.0,0.18796622]
[1759255342226,1.18929029,113280.0,113270.0,0.18796622]
[1759255342528,1.99821029,113280.0,113270.0,0.18796622]
[1759255343425,1.99817029,113280.0,113270.0,0.18796622]
[1759255343626,1.18929029,113280.0,113270.0,0.18796622]
[1759255343829,1.99805029,113280.0,113270.0,0.18796622]
[1759255344032,1.18929029,113280.0,113270.0,0.18796622]
[1759255344234,1.99801029,113280.0,113270.0,0.18796622]
[1759255344534,1.99757029,113280.0,113270.0,0.18756622]